fUST/lending_fUST_20251006
["ID","MTS","AMOUNT","RATE_DAILY","PERIOD"]
[389552553,1759710664117,-500.0,0.0001726,2]
[389552554,1759710664126,-4004.207157,0.0001726,2]
[389552555,1759710664135,-500.0,0.0001726,2]
[389552556,1759710664144,-166.414755,0.0001726,2]
[389552557,1759710664153,-4004.207157,0.0001726,2]
[389552558,1759710664163,-500.0,0.00017273,2]
[389552559,1759710664172,-500.0,0.00017273,2]
[389552560,1759710664181,-500.0,0.00017273,2]
[389552561,1759710664191,-500.0,0.00017273,2]
[389552562,1759710664200,-500.0,0.00017273,2]
[389552563,1759710664209,-500.0,0.00017273,2]
[389552564,1759710664218,-500.0,0.00017273,2]
[389552565,1759710664227,-500.0,0.00017273,2]
[389552566,1759710664236,-500.0,0.00017273,2]
[389552567,1759710664246,-500.0,0.00017273,2]
[389552568,1759710664256,-500.24686826,0.00017273,2]
[389552569,1759710664265,-500.0,0.00017273,2]
[389552570,1759710664275,-500.0,0.00017273,2]
[389552571,1759710664284,-500.0,0.00017273,2]
[389552572,1759710664293,-151.0,0.00017273,2]
[389552573,1759710664303,-151.0,0.00017273,2]
[389552574,1759710664312,-230.176013,0.00017273,2]
[389552575,1759710664322,-151.0,0.00017273,2]
[389552576,1759710664333,-230.176013,0.00017273,2]
[389552577,1759710664342,-230.176013,0.00017273,2]
[389552578,1759710664351,-151.0,0.00017273,2]
[389552579,1759710664360,-230.176017,0.00017273,2]
[389552580,1759710664369,-151.0,0.00017273,2]
[389552581,1759710664378,-151.0,0.00017273,2]
[389552582,1759710664387,-151.0,0.00017273,2]
[389552583,1759710664396,-221.529536,0.00017273,2]
[389552584,1759710664405,-221.529536,0.00017273,2]
[389552585,1759710664415,-221.529536,0.00017273,2]
[389552586,1759710664424,-221.529534,0.00017273,2]
[389552587,1759710664433,-183.466348,0.00017273,2]
[389552588,1759710664443,-183.466348,0.00017273,2]
[389552589,1759710664452,-151.0,0.00017273,2]
[389552590,1759710664461,-183.466348,0.00017273,2]
[389552591,1759710664470,-151.0,0.00017273,2]
[389552592,1759710664479,-183.466353,0.00017273,2]
[389552593,1759710664488,-157.607587,0.00017273,2]
[389552594,1759710664497,-157.607587,0.00017273,2]
[389552595,1759710664507,-157.607587,0.00017273,2]
[389552596,1759710664518,-157.607591,0.00017273,2]
[389552597,1759710664527,-18603.8837,0.00017292,2]
[389552598,1759710664537,-252.21901886,0.00017292,2]
[389552599,1759710664546,-250.0,0.00017292,2]
[389552600,1759710664555,-250.0,0.00017292,2]
[389552601,1759710664564,-250.0,0.00017292,2]
[389552602,1759710664573,-250.0,0.00017292,2]
[389552603,1759710664585,-2030.296672,0.00017292,2]
[389552604,1759710664593,-151.0,0.00017292,2]
[389552605,1759710664602,-151.0,0.00017292,2]
[389552606,1759710664611,-151.0,0.00017292,2]
[389552607,1759710664619,-151.0,0.00017292,2]
[389552608,1759710664628,-151.0,0.00017292,2]
[389552609,1759710664637,-151.0,0.00017292,2]
[389552610,1759710664646,-151.0,0.00017292,2]
[389552611,1759710664787,-151.0,0.00017292,2]
[389552612,1759710664797,-151.0,0.00017292,2]
[389552613,1759710664807,-1000.0,0.00017321,2]
[389552614,1759710664815,-500.0,0.00017321,2]
[389552615,1759710664826,-739.54817682,0.00017321,2]
[389552616,1759710664835,-513.27823922,0.00017321,2]
[389552617,1759710664844,-2105.41764886,0.00017347,2]
[389552618,1759710664854,-4590.34950251,0.00017375,2]
[389552619,1759710664863,-2116.64631065,0.00017402,2]
[389552620,1759710664872,-12357.06857415,0.00017433,2]
[389552621,1759710664881,-629.68274573,0.00017438,2]
[389552622,1759710664891,-176.80022369,0.00017521,2]
[389552623,1759710664900,-1000.0,0.00017521,2]
[389552624,1759710664910,-1000.0,0.00017521,2]
[389552625,1759710664919,-1000.0,0.00017521,2]
[389552626,1759710664928,-1000.0,0.00017521,2]
[389552627,1759710664938,-1000.0,0.00017521,2]
[389552628,1759710664947,-1000.0,0.00017521,2]
[389552629,1759710664956,-417.56352217,0.00017521,2]
[389552630,1759710664965,-1000.9666663,0.00017521,2]
[389552631,1759710664975,-1000.0,0.00017521,2]
[389552632,1759710664984,-1000.0,0.00017521,2]
[389552633,1759710664993,-1000.0,0.00017521,2]
[389552634,1759710665002,-1000.0,0.00017521,2]
[389552635,1759710665011,-1000.0,0.00017521,2]
[389552636,1759710665021,-1000.0,0.00017521,2]
[389552637,1759710665030,-1002.40898708,0.00017521,2]
[389552638,1759710665039,-1000.0,0.00017521,2]
[389552639,1759710665048,-1000.0,0.00017521,2]
[389552640,1759710665058,-1000.0,0.00017521,2]
[389552641,1759710665067,-1000.0,0.00017521,2]
[389552642,1759710665078,-1000.0,0.00017521,2]
[389552643,1759710665088,-1000.0,0.00017521,2]
[389552644,1759710665097,-1000.0,0.00017521,2]
[389552645,1759710665106,-511.71667688,0.00017521,2]
[389552646,1759710665116,-1100.10644227,0.00017521,2]
[389552647,1759710665125,-297.61098029,0.00017521,2]
[389552648,1759710665134,-1000.0,0.00017521,2]
[389552649,1759710665143,-673.57237974,0.00017521,2]
[389552650,1759710665153,-1000.0,0.00017521,2]
[389552651,1759710665162,-151.0,0.00017533,2]
[389552652,1759710665171,-151.0,0.00017533,2]
[389552653,1759710665180,-151.0,0.00017533,2]
[389552654,1759710665189,-274.42824,0.00017533,2]
[389552655,1759710665199,-151.0,0.00017533,2]
[389552656,1759710665208,-151.0,0.00017533,2]
[389552657,1759710665218,-151.0,0.00017533,2]
[389552658,1759710665228,-1717.26,0.00017533,2]
[389552659,1759710665237,-1717.26,0.00017533,2]
[389552660,1759710665247,-1717.26,0.00017533,2]
[389552661,1759710665256,-1717.26,0.00017533,2]
[389552662,1759710665265,-1717.3166397,0.00017533,2]
[389552663,1759710665274,-151.0,0.00017533,2]
[389552664,1759710665283,-151.0,0.00017533,2]
[389552665,1759710665292,-151.0,0.00017533,2]
[389552666,1759710665301,-1187.319649,0.00017533,2]
[389552667,1759710665311,-151.0,0.00017533,2]
[389552668,1759710665322,-151.0,0.00017533,2]
[389552669,1759710665333,-151.0,0.00017533,2]
[389552670,1759710665342,-1187.319649,0.00017533,2]
[389552671,1759710665352,-151.0,0.00017533,2]
[389552672,1759710665361,-1187.319649,0.00017533,2]
[389552673,1759710665370,-1187.319658,0.00017533,2]
[389552674,1759710665379,-151.0,0.00017533,2]
[389552675,1759710665388,-151.0,0.00017533,2]
[389552676,1759710665397,-209.090294,0.00017533,2]
[389552677,1759710665406,-209.090294,0.00017533,2]
[389552678,1759710665416,-151.0,0.00017533,2]
[389552679,1759710665425,-209.090294,0.00017533,2]
[389552680,1759710665435,-151.0,0.00017533,2]
[389552681,1759710665444,-209.090294,0.00017533,2]
[389552682,1759710665453,-172.030703,0.00017533,2]
[389552683,1759710665462,-151.0,0.00017533,2]
[389552684,1759710665471,-172.030703,0.00017533,2]
[389552685,1759710665481,-172.030703,0.00017533,2]
[389552686,1759710665491,-595.190369,0.00017533,2]
[389552687,1759710665500,-161.061225,0.00017533,2]
[389552688,1759710665510,-151.0,0.00017533,2]
[389552689,1759710665519,-595.190369,0.00017533,2]
[389552690,1759710665529,-172.030708,0.00017533,2]
[389552691,1759710665538,-595.190369,0.00017533,2]
[389552692,1759710665548,-207.331023,0.00017533,2]
[389552693,1759710665558,-595.19037778,0.00017533,2]
[389552694,1759710665567,-207.331023,0.00017533,2]
[389552695,1759710665579,-207.331023,0.00017533,2]
[389552696,1759710665588,-207.331027,0.00017533,2]
[389552697,1759710665597,-300.261694,0.00017533,2]
[389552698,1759710665606,-300.261694,0.00017533,2]
[389552699,1759710665615,-300.261694,0.00017533,2]
[389552700,1759710665624,-300.261687,0.00017533,2]
[389552701,1759710665633,-151.0,0.00017533,2]
[389552702,1759710665642,-354.677275,0.00017533,2]
[389552703,1759710665651,-151.0,0.00017533,2]
[389552704,1759710665660,-354.677275,0.00017533,2]
[389552705,1759710665671,-151.0,0.00017533,2]
[389552706,1759710665680,-151.0,0.00017533,2]
[389552707,1759710665689,-354.677275,0.00017533,2]
[389552708,1759710665699,-354.677279,0.00017533,2]
[389552709,1759710665710,-347.86757,0.00017533,2]
[389552710,1759710665720,-347.86757,0.00017533,2]
[389552711,1759710665731,-159.459676,0.00017533,2]
[389552712,1759710665740,-347.86757,0.00017533,2]
[389552713,1759710665752,-159.459676,0.00017533,2]
[389552714,1759710665762,-159.459676,0.00017533,2]
[389552715,1759710665772,-347.867572,0.00017533,2]
[389552716,1759710665785,-159.45968,0.00017533,2]
[389552717,1759710665797,-500.0,0.00017534,2]
[389552718,1759710665806,-543.72,0.00017534,2]
[389552719,1759710665816,-152.004057,0.00017534,2]
[389552720,1759710665829,-151.0,0.00017534,2]
[389552721,1759710665838,-500.0,0.00017534,2]
[389552722,1759710665848,-151.0,0.00017534,2]
[389552723,1759710665857,-294.341408,0.00017534,2]
[389552724,1759710665867,-500.0,0.00017534,2]
[389552725,1759710665876,-151.0,0.00017534,2]
[389552726,1759710665885,-500.0,0.00017534,2]
[389552727,1759710665894,-498.85988071,0.00017534,2]
[389552728,1759710665903,-420.0,0.00017534,2]
[389552729,1759710665912,-151.0,0.00017534,2]
[389552730,1759710665922,-151.0,0.00017534,2]
[389552731,1759710665931,-151.0,0.00017534,2]
[389552732,1759710665940,-151.0,0.00017534,2]
[389552733,1759710665950,-500.0,0.00017534,2]
[389552734,1759710665959,-528.60478509,0.00017534,2]
[389552735,1759710665968,-151.0,0.00017534,2]
[389552736,1759710665977,-200.829873,0.00017534,2]
[389552737,1759710665986,-151.0,0.00017534,2]
[389552738,1759710665996,-485.8936809,0.00017534,2]
[389552739,1759710666005,-151.0,0.00017534,2]
[389552740,1759710666015,-151.0,0.00017534,2]
[389552741,1759710666024,-500.0,0.00017534,2]
[389552742,1759710666033,-500.0,0.00017534,2]
[389552743,1759710666043,-500.0,0.00017534,2]
[389552744,1759710666052,-522.60780789,0.00017534,2]
[389552745,1759710666062,-500.0,0.00017534,2]
[389552746,1759710666071,-151.0,0.00017534,2]
[389552747,1759710666083,-500.0,0.00017534,2]
[389552748,1759710666093,-500.0,0.00017534,2]
[389552749,1759710666102,-704.51,0.00017534,2]
[389552750,1759710666111,-500.0,0.00017534,2]
[389552751,1759710666120,-500.0,0.00017534,2]
[389552752,1759710666129,-570.63,0.00017534,2]
[389552753,1759710666138,-829.36,0.00017534,2]
[389552754,1759710666147,-500.0,0.00017534,2]
[389552755,1759710666157,-500.0,0.00017534,2]
[389552756,1759710666166,-151.0,0.00017534,2]
[389552757,1759710666175,-500.0,0.00017534,2]
[389552758,1759710666184,-470.33937899,0.00017534,2]
[389552759,1759710666194,-1340.02,0.00017534,2]
[389552760,1759710666203,-882.96,0.00017534,2]
[389552761,1759710666212,-500.0,0.00017534,2]
[389552762,1759710666221,-500.0,0.00017534,2]
[389552763,1759710666231,-500.0,0.00017534,2]
[389552764,1759710666241,-161.448764,0.00017534,2]
[389552765,1759710666250,-500.0,0.00017534,2]
[389552766,1759710666259,-507.62,0.00017534,2]
[389552767,1759710666269,-500.0,0.00017534,2]
[389552768,1759710666278,-500.0,0.00017534,2]
[389552769,1759710666287,-568.01,0.00017534,2]
[389552770,1759710666297,-500.0,0.00017534,2]
[389552771,1759710666306,-151.0,0.00017534,2]
[389552772,1759710666316,-258.170698,0.00017534,2]
[389552773,1759710666325,-151.0,0.00017534,2]
[389552774,1759710666335,-151.0,0.00017534,2]
[389552775,1759710666344,-706.21,0.00017534,2]
[389552776,1759710666353,-151.0,0.00017534,2]
[389552777,1759710666362,-151.0,0.00017534,2]
[389552778,1759710666372,-500.0,0.00017534,2]
[389552779,1759710666381,-515.97,0.00017534,2]
[389552780,1759710666391,-570.06,0.00017534,2]
[389552781,1759710666400,-173.81,0.00017534,2]
[389552782,1759710666409,-500.0,0.00017534,2]
[389552783,1759710666419,-500.0,0.00017534,2]
[389552784,1759710666428,-500.0,0.00017534,2]
[389552785,1759710666438,-907.79,0.00017534,2]
[389552786,1759710666447,-500.0,0.00017534,2]
[389552787,1759710666456,-500.0,0.00017534,2]
[389552788,1759710666465,-500.0,0.00017534,2]
[389552789,1759710666475,-500.0,0.00017534,2]
[389552790,1759710666484,-151.0,0.00017534,2]
[389552791,1759710666494,-151.0,0.00017534,2]
[389552792,1759710666503,-171.319303,0.00017534,2]
[389552793,1759710666512,-171.319303,0.00017534,2]
[389552794,1759710666523,-171.319303,0.00017534,2]
[389552795,1759710666532,-500.0,0.00017534,2]
[389552796,1759710666542,-500.0,0.00017534,2]
[389552797,1759710666551,-171.319308,0.00017534,2]
[389552798,1759710666560,-500.0,0.00017534,2]
[389552799,1759710666569,-500.0,0.00017534,2]
[389552800,1759710666579,-151.0,0.00017534,2]
[389552801,1759710666589,-151.0,0.00017534,2]
[389552802,1759710666598,-151.0,0.00017534,2]
[389552803,1759710666608,-500.0,0.00017534,2]
[389552804,1759710666616,-500.0,0.00017534,2]
[389552805,1759710666625,-500.0,0.00017534,2]
[389552806,1759710666634,-500.0,0.00017534,2]
[389552807,1759710666643,-1189.93,0.00017534,2]
[389552808,1759710666652,-788.71,0.00017534,2]
[389552809,1759710666661,-500.0,0.00017534,2]
[389552810,1759710666671,-634.6,0.00017534,2]
[389552811,1759710666681,-500.0,0.00017534,2]
[389552812,1759710666690,-151.0,0.00017534,2]
[389552813,1759710666702,-500.0,0.00017534,2]
[389552814,1759710666712,-500.0,0.00017534,2]
[389552815,1759710666722,-569.32,0.00017534,2]
[389552816,1759710666732,-500.0,0.00017534,2]
[389552817,1759710666741,-500.0,0.00017534,2]
[389552818,1759710666750,-500.0,0.00017534,2]
[389552819,1759710666760,-209.109741,0.00017534,2]
[389552820,1759710666769,-209.109741,0.00017534,2]
[389552821,1759710666778,-209.109741,0.00017534,2]
[389552822,1759710666793,-209.109748,0.00017534,2]
[389552823,1759710666802,-248.329836,0.00017534,2]
[389552824,1759710666812,-248.329836,0.00017534,2]
[389552825,1759710666821,-248.329836,0.00017534,2]
[389552826,1759710666832,-500.0,0.00017534,2]
[389552827,1759710666842,-248.329841,0.00017534,2]
[389552828,1759710666851,-500.0,0.00017534,2]
[389552829,1759710666861,-151.0,0.00017534,2]
[389552830,1759710666870,-500.0,0.00017534,2]
[389552831,1759710666879,-500.0,0.00017534,2]
[389552832,1759710666889,-151.0,0.00017534,2]
[389552833,1759710666899,-151.0,0.00017534,2]
[389552834,1759710666908,-151.0,0.00017534,2]
[389552835,1759710666917,-1416.88,0.00017534,2]
[389552836,1759710666926,-500.0,0.00017534,2]
[389552837,1759710666935,-151.0,0.00017534,2]
[389552838,1759710666944,-500.0,0.00017534,2]
[389552839,1759710666953,-500.0,0.00017534,2]
[389552840,1759710666963,-151.0,0.00017534,2]
[389552841,1759710666972,-550.25144794,0.00017534,2]
[389552842,1759710666982,-524.03,0.00017534,2]
[389552843,1759710666991,-500.0,0.00017534,2]
[389552844,1759710667001,-420.0,0.00017534,2]
[389552845,1759710667010,-500.0,0.00017534,2]
[389552846,1759710667019,-500.0,0.00017534,2]
[389552847,1759710667028,-484.64798756,0.00017534,2]
[389552848,1759710667037,-491.39422875,0.00017534,2]
[389552849,1759710667047,-1492.82,0.00017534,2]
[389552850,1759710667057,-1405.52,0.00017534,2]
[389552851,1759710667066,-329.83563007,0.00017534,2]
[389552852,1759710667077,-3841.45,0.00017534,2]
[389552853,1759710667086,-645.51,0.00017534,2]
[389552854,1759710667095,-500.0,0.00017534,2]
[389552855,1759710667105,-1015.09,0.00017534,2]
[389552856,1759710667114,-500.0,0.00017534,2]
[389552857,1759710667123,-901.06,0.00017534,2]
[389552858,1759710667132,-895.39,0.00017534,2]
[389552859,1759710667143,-500.0,0.00017534,2]
[389552860,1759710667153,-945.02,0.00017534,2]
[389552861,1759710667161,-804.75,0.00017534,2]
[389552862,1759710667171,-1239.33,0.00017534,2]
[389552863,1759710667181,-602.97,0.00017534,2]
[389552864,1759710667190,-1437.31,0.00017534,2]
[389552865,1759710667200,-500.0,0.00017534,2]
[389552866,1759710667209,-550.39988713,0.00017534,2]
[389552867,1759710667218,-500.0,0.00017534,2]
[389552868,1759710667228,-3369.67,0.00017534,2]
[389552869,1759710667237,-500.0,0.00017534,2]
[389552870,1759710667247,-10794.67,0.00017534,2]
[389552871,1759710667256,-563.2,0.00017534,2]
[389552872,1759710667265,-1718.43,0.00017534,2]
[389552873,1759710667274,-500.0,0.00017534,2]
[389552874,1759710667283,-500.0,0.00017534,2]
[389552875,1759710667292,-500.0,0.00017534,2]
[389552876,1759710667304,-500.0,0.00017534,2]
[389552877,1759710667323,-3482.74,0.00017534,2]
[389552878,1759710667337,-500.0,0.00017534,2]
[389552879,1759710667346,-3304.71,0.00017534,2]
[389552880,1759710667357,-2439.53,0.00017534,2]
[389552881,1759710667366,-500.0,0.00017534,2]
[389552882,1759710667376,-1237.3,0.00017534,2]
[389552883,1759710667385,-529.42,0.00017534,2]
[389552884,1759710667394,-500.0,0.00017534,2]
[389552885,1759710667403,-643.24,0.00017534,2]
[389552886,1759710667411,-500.0,0.00017534,2]
[389552887,1759710667420,-500.0,0.00017534,2]
[389552888,1759710667428,-675.1,0.00017534,2]
[389552889,1759710667437,-500.0,0.00017534,2]
[389552890,1759710667446,-500.0,0.00017534,2]
[389552891,1759710667455,-970.08,0.00017534,2]
[389552892,1759710667587,-500.0,0.00017534,2]
[389552893,1759710667597,-500.0,0.00017534,2]
[389552894,1759710667606,-500.0,0.00017534,2]
[389552895,1759710667616,-4225.47,0.00017534,2]
[389552896,1759710667626,-500.0,0.00017534,2]
[389552897,1759710667635,-1256.0,0.00017534,2]
[389552898,1759710667644,-500.0,0.00017534,2]
[389552899,1759710667654,-747.68,0.00017534,2]
[389552900,1759710667664,-1127.29,0.00017534,2]
[389552901,1759710667673,-785.54,0.00017534,2]
[389552902,1759710667682,-1755.26,0.00017534,2]
[389552903,1759710667692,-500.0,0.00017534,2]
[389552904,1759710667701,-500.0,0.00017534,2]
[389552905,1759710667710,-1302.2,0.00017534,2]
[389552906,1759710667719,-791.93,0.00017534,2]
[389552907,1759710667728,-500.0,0.00017534,2]
[389552908,1759710667737,-500.0,0.00017534,2]
[389552909,1759710667747,-500.0,0.00017534,2]
[389552910,1759710667756,-500.0,0.00017534,2]
[389552911,1759710667765,-3860.52,0.00017534,2]
[389552912,1759710667775,-519.62979178,0.00017534,2]
[389552913,1759710667786,-500.0,0.00017534,2]
[389552914,1759710667795,-500.0,0.00017534,2]
[389552915,1759710667805,-500.0,0.00017534,2]
[389552916,1759710667814,-500.0,0.00017534,2]
[389552917,1759710667823,-565.09,0.00017534,2]
[389552918,1759710667834,-500.0,0.00017534,2]
[389552919,1759710667843,-500.0,0.00017534,2]
[389552920,1759710667853,-500.0,0.00017534,2]
[389552921,1759710667862,-544.42,0.00017534,2]
[389552922,1759710667871,-568.57,0.00017534,2]
[389552923,1759710667880,-500.0,0.00017534,2]
[389552924,1759710667889,-500.0,0.00017534,2]
[389552925,1759710667898,-950.55,0.00017534,2]
[389552926,1759710667907,-7579.73,0.00017534,2]
[389552927,1759710667917,-500.0,0.00017534,2]
[389552928,1759710667926,-2804.59,0.00017534,2]
[389552929,1759710667935,-500.0,0.00017534,2]
[389552930,1759710667944,-500.0,0.00017534,2]
[389552931,1759710667953,-878.32,0.00017534,2]
[389552932,1759710667961,-1082.28,0.00017534,2]
[389552933,1759710667971,-10468.81,0.00017534,2]
[389552934,1759710667981,-500.0,0.00017534,2]
[389552935,1759710667991,-1383.8,0.00017534,2]
[389552936,1759710668000,-500.0,0.00017534,2]
[389552937,1759710668010,-580.45,0.00017534,2]
[389552938,1759710668020,-500.0,0.00017534,2]
[389552939,1759710668029,-805.48,0.00017534,2]
[389552940,1759710668039,-500.0,0.00017534,2]
[389552941,1759710668048,-500.0,0.00017534,2]
[389552942,1759710668057,-3339.82,0.00017534,2]
[389552943,1759710668066,-500.0,0.00017534,2]
[389552944,1759710668075,-701.96,0.00017534,2]
[389552945,1759710668085,-1844.08,0.00017534,2]
[389552946,1759710668094,-500.0,0.00017534,2]
[389552947,1759710668103,-500.0,0.00017534,2]
[389552948,1759710668112,-4754.03,0.00017534,2]
[389552949,1759710668121,-500.0,0.00017534,2]
[389552950,1759710668130,-7407.31,0.00017534,2]
[389552951,1759710668140,-500.0,0.00017534,2]
[389552952,1759710668149,-500.0,0.00017534,2]
[389552953,1759710668158,-500.0,0.00017534,2]
[389552954,1759710668167,-2043.5,0.00017534,2]
[389552955,1759710668177,-668.25,0.00017534,2]
[389552956,1759710668188,-500.0,0.00017534,2]
[389552957,1759710668198,-500.0,0.00017534,2]
[389552958,1759710668207,-1500.0,0.00017568,2]
[389552959,1759710668217,-1500.0,0.00017568,2]
[389552960,1759710668227,-1500.0,0.00017568,2]
[389552961,1759710668236,-1500.0,0.00017568,2]
[389552962,1759710668246,-1500.0,0.00017568,2]
[389552963,1759710668256,-1500.0,0.00017568,2]
[389552964,1759710668266,-1500.0,0.00017568,2]
[389552965,1759710668276,-1500.0,0.00017568,2]
[389552966,1759710668285,-500.0,0.00017619,2]
[389552967,1759710668294,-217.09356172,0.00017619,2]
[389552968,1759710668303,-500.0,0.00017619,2]
[389552969,1759710668313,-500.0,0.00017619,2]
[389552970,1759710668322,-500.0,0.00017619,2]
[389552971,1759710668332,-500.0,0.00017619,2]
[389552972,1759710668341,-500.0,0.00017619,2]
[389552973,1759710668351,-500.0,0.00017619,2]
[389552974,1759710668360,-151.0,0.00017621,2]
[389552975,1759710668369,-151.0,0.00017621,2]
[389552976,1759710668378,-151.0,0.00017621,2]
[389552977,1759710668388,-151.0,0.00017621,2]
[389552978,1759710668397,-151.0,0.00017621,2]
[389552979,1759710668407,-151.0,0.00017621,2]
[389552980,1759710668417,-151.0,0.00017621,2]
[389552981,1759710668427,-500.0,0.0001763,2]
[389552982,1759710668436,-500.0,0.0001763,2]
[389552983,1759710668445,-500.0,0.0001763,2]
[389552984,1759710668454,-500.0,0.0001763,2]
[389552985,1759710668463,-437.29021237,0.0001763,2]
[389552986,1759710668472,-500.0,0.0001763,2]
[389552987,1759710668481,-165.11033691,0.0001763,2]
[389552988,1759710668491,-500.0,0.0001763,2]
[389552989,1759710668501,-4590.34950251,0.00017721,2]
[389552990,1759710668510,-2153.34,0.00017798,3]
[389552991,1759710668519,-1076.66,0.00017798,3]
[389552992,1759710668528,-538.34,0.00017798,3]
[389552993,1759710668537,-500.0,0.00017808,2]
[389552994,1759710668546,-543.72,0.00017808,2]
[389552995,1759710668555,-151.0,0.00017808,2]
[389552996,1759710668564,-151.0,0.00017808,2]
[389552997,1759710668574,-500.0,0.00017808,2]
[389552998,1759710668585,-151.0,0.00017808,2]
[389552999,1759710668594,-500.0,0.00017808,2]
[389553000,1759710668603,-151.0,0.00017808,2]
[389553001,1759710668612,-185.789616,0.00017808,2]
[389553002,1759710668621,-151.0,0.00017808,2]
[389553003,1759710668630,-151.0,0.00017808,2]
[389553004,1759710668639,-500.0,0.00017808,2]
[389553005,1759710668648,-151.0,0.00017808,2]
[389553006,1759710668657,-151.0,0.00017808,2]
[389553007,1759710668666,-151.0,0.00017808,2]
[389553008,1759710668675,-271.93257,0.00017808,2]
[389553009,1759710668684,-500.0,0.00017808,2]
[389553010,1759710668695,-500.0,0.00017808,2]
[389553011,1759710668704,-480.0,0.00017808,2]
[389553012,1759710668713,-500.0,0.00017808,2]
[389553013,1759710668723,-180.638359,0.00017808,2]
[389553014,1759710668732,-500.0,0.00017808,2]
[389553015,1759710668741,-704.51,0.00017808,2]
[389553016,1759710668750,-500.0,0.00017808,2]
[389553017,1759710668759,-500.0,0.00017808,2]
[389553018,1759710668768,-570.63,0.00017808,2]
[389553019,1759710668778,-829.36,0.00017808,2]
[389553020,1759710668791,-500.0,0.00017808,2]
[389553021,1759710668801,-500.0,0.00017808,2]
[389553022,1759710668811,-151.0,0.00017808,2]
[389553023,1759710668823,-500.0,0.00017808,2]
[389553024,1759710668841,-1340.02,0.00017808,2]
[389553025,1759710668851,-882.96,0.00017808,2]
[389553026,1759710668859,-500.0,0.00017808,2]
[389553027,1759710668869,-500.0,0.00017808,2]
[389553028,1759710668878,-500.0,0.00017808,2]
[389553029,1759710668887,-500.0,0.00017808,2]
[389553030,1759710668896,-500.0,0.00017808,2]
[389553031,1759710668905,-500.0,0.00017808,2]
[389553032,1759710668914,-568.01,0.00017808,2]
[389553033,1759710668924,-500.0,0.00017808,2]
[389553034,1759710668933,-706.21,0.00017808,2]
[389553035,1759710668942,-480.0,0.00017808,2]
[389553036,1759710668951,-515.97,0.00017808,2]
[389553037,1759710668961,-570.06,0.00017808,2]
[389553038,1759710668970,-500.0,0.00017808,2]
[389553039,1759710668979,-500.0,0.00017808,2]
[389553040,1759710668989,-907.79,0.00017808,2]
[389553041,1759710668998,-500.0,0.00017808,2]
[389553042,1759710669008,-500.0,0.00017808,2]
[389553043,1759710669017,-500.0,0.00017808,2]
[389553044,1759710669027,-500.0,0.00017808,2]
[389553045,1759710669036,-500.0,0.00017808,2]
[389553046,1759710669047,-500.0,0.00017808,2]
[389553047,1759710669056,-500.0,0.00017808,2]
[389553048,1759710669066,-500.0,0.00017808,2]
[389553049,1759710669075,-500.0,0.00017808,2]
[389553050,1759710669085,-1189.93,0.00017808,2]
[389553051,1759710669095,-788.71,0.00017808,2]
[389553052,1759710669104,-500.0,0.00017808,2]